bitfinex/quotes_BTCUSD_20251009
["timestamp","ask_amount","ask_price","bid_price","bid_amount"]
[1760014681895,1e-08,123640.0,123630.0,3.60953796]
[1760014682103,1e-08,123640.0,123630.0,3.84217796]
[1760014683532,1e-08,123640.0,123630.0,3.16597797]
[1760014683820,1e-08,123640.0,123630.0,2.01762409]
[1760014684061,1e-08,123640.0,123630.0,2.04777599]
[1760014684243,1e-08,123640.0,123630.0,2.14777598]
[1760014684455,1e-08,123640.0,123630.0,2.14377598]
[1760014684661,1e-08,123640.0,123630.0,1.81313599]
[1760014684834,1e-08,123640.0,123630.0,2.14677598]
[1760014685076,1e-08,123640.0,123630.0,1.05925599]
[1760014685237,1e-08,123640.0,123630.0,1.44507699]
[1760014685438,1e-08,123640.0,123630.0,1.67371699]
[1760014685663,1e-08,123640.0,123630.0,0.31804509]
[1760014685826,1e-08,123640.0,123630.0,1.30556509]
[1760014686023,1e-08,123640.0,123630.0,1.33571699]
[1760014686231,1e-08,123640.0,123630.0,1.67371699]
[1760014686640,0.00050066,123640.0,123630.0,1.44307699]
[1760014686848,0.00050066,123640.0,123630.0,1.67367699]
[1760014687050,0.00050066,123640.0,123630.0,1.67267699]
[1760014687258,0.00050066,123640.0,123630.0,1.67367699]
[1760014688492,0.00050066,123640.0,123630.0,1.67567699]
[1760014688702,0.00050066,123640.0,123630.0,0.68819699]
[1760014688931,0.00050066,123640.0,123630.0,1.33927699]
[1760014690455,0.00050066,123640.0,123630.0,0.68819699]
[1760014690665,0.00050066,123640.0,123630.0,1.33927699]
[1760014691169,0.00050066,123640.0,123630.0,1.10867699]
[1760014691421,0.00050066,123640.0,123630.0,1.33927699]
[1760014691590,0.00050066,123640.0,123630.0,1.10867699]
[1760014691826,0.00050066,123640.0,123630.0,1.33927699]
[1760014692655,0.00050066,123640.0,123630.0,1.32927699]
[1760014693684,0.00050066,123640.0,123630.0,1.24519699]
[1760014693822,0.00050066,123640.0,123630.0,1.09867699]
[1760014694027,0.00050066,123640.0,123630.0,1.32927699]
[1760014694952,0.00050066,123640.0,123630.0,0.65444509]
[1760014695153,0.02113066,123640.0,123630.0,0.70626509]
[1760014695288,0.1981306,123640.0,123630.0,0.93686509]
[1760014695493,0.1981306,123640.0,123630.0,0.12401206]
[1760014695716,0.27831894,123640.0,123630.0,0.42348]
[1760014695918,0.27831894,123640.0,123630.0,0.65208]
[1760014696307,0.27831894,123640.0,123630.0,0.002]
[1760014696509,0.00805607,123640.0,123630.0,0.46037]
[1760014696719,0.16981601,123640.0,123630.0,0.88500303]
[1760014696900,0.20568601,123640.0,123630.0,0.68997]
[1760014697095,0.23759601,123640.0,123630.0,0.65208]
[1760014697637,0.23759601,123640.0,123630.0,0.65108]
[1760014697910,0.23759601,123640.0,123630.0,0.65208]
[1760014698895,0.27907448,123640.0,123630.0,0.65208]
[1760014699229,0.23759601,123640.0,123630.0,0.65208]
[1760014700499,0.00050066,123640.0,123630.0,0.96612509]
[1760014700991,0.00050066,123640.0,123630.0,0.96712509]
[1760014701469,0.00050066,123640.0,123630.0,0.96612509]
[1760014701959,0.00050066,123640.0,123630.0,0.96712509]
[1760014702665,0.00050066,123640.0,123630.0,0.96812509]
[1760014703546,0.00050066,123640.0,123630.0,0.73752509]
[1760014703750,0.00050066,123640.0,123630.0,0.96812509]
[1760014704191,0.00050066,123640.0,123630.0,0.31704509]
[1760014704441,0.2300406,123640.0,123630.0,0.08608]
[1760014704607,0.2300406,123640.0,123630.0,0.47845303]
[1760014704823,0.2300406,123640.0,123630.0,0.50079303]
[1760014704965,0.2300406,123640.0,123630.0,0.49979303]
[1760014705175,0.2300406,123640.0,123630.0,0.49879303]
[1760014705389,0.2300406,123640.0,123630.0,0.49979303]
[1760014705818,0.1981306,123640.0,123630.0,0.35157]
[1760014706179,0.1622606,123640.0,123630.0,0.28274303]
[1760014706401,0.00050066,123640.0,123630.0,0.31326303]
[1760014706626,0.1622606,123640.0,123630.0,0.54386303]
[1760014707420,0.1622606,123640.0,123630.0,0.54486303]
[1760014709651,0.00050066,123640.0,123630.0,0.62798509]
[1760014709859,0.00050066,123640.0,123630.0,0.62198509]
[1760014711701,0.2142506,123640.0,123630.0,0.12101206]
[1760014711903,0.2298606,123640.0,123630.0,0.65212]
[1760014712107,0.26900438,123640.0,123630.0,0.65212]
[1760014712397,0.2298606,123640.0,123630.0,0.65212]
[1760014712988,0.2298606,123640.0,123630.0,0.001]
[1760014713197,0.2298606,123640.0,123630.0,0.31568]
[1760014713566,0.2298606,123640.0,123630.0,0.001]
[1760014713764,0.27056538,123640.0,123630.0,0.08508]
[1760014714025,0.27056538,123640.0,123630.0,0.31568]
[1760014715760,0.2298606,123640.0,123630.0,0.08508]
[1760014715961,0.2298606,123640.0,123630.0,0.31568]
[1760014716299,0.2298606,123640.0,123630.0,0.08508]
[1760014716516,0.2298606,123640.0,123630.0,0.51334303]
[1760014716517,0.1978706,123640.0,123630.0,0.51334303]
[1760014716716,0.03611066,123640.0,123630.0,0.28274303]
[1760014716917,0.1978706,123640.0,123630.0,0.51334303]
[1760014717142,0.1978706,123640.0,123630.0,0.38209]
[1760014717588,0.00050066,123640.0,123630.0,0.31326303]
[1760014717782,0.00050066,123640.0,123630.0,0.54386303]
[1760014717926,0.1622606,123640.0,123630.0,0.54386303]
[1760014720131,0.1822606,123640.0,123630.0,0.51334303]
[1760014720541,0.00050066,123640.0,123630.0,0.31326303]
[1760014720751,0.1622606,123640.0,123630.0,0.54386303]
[1760014721004,0.1622606,123640.0,123630.0,0.51334303]
[1760014721183,0.1822606,123640.0,123630.0,0.51334303]
[1760014722073,0.1622606,123640.0,123630.0,0.54386303]
[1760014722262,0.1822606,123640.0,123630.0,0.51334303]
[1760014723235,0.22140439,123640.0,123630.0,0.51334303]
[1760014723495,0.1822606,123640.0,123630.0,0.51334303]
[1760014724118,0.1622606,123640.0,123630.0,0.54386303]
[1760014724292,0.00050066,123640.0,123630.0,0.54386303]
[1760014724896,0.1622606,123640.0,123630.0,0.54386303]
[1760014725656,0.1622606,123640.0,123630.0,0.54382303]
[1760014728836,0.00050066,123640.0,123630.0,0.54382303]
[1760014731693,0.1622606,123640.0,123630.0,0.54382303]
[1760014733613,0.00050066,123640.0,123630.0,0.54382303]
[1760014734493,0.1622606,123640.0,123630.0,0.54382303]
[1760014735316,0.1622606,123640.0,123630.0,0.31326303]
[1760014735552,0.26605639,123640.0,123630.0,0.08508]
[1760014735754,0.26605639,123640.0,123630.0,0.31564]
[1760014738252,0.2289306,123640.0,123630.0,0.31564]
[1760014739318,1.31449142,123640.0,123630.0,0.001]
[1760014739752,0.98327204,123640.0,123630.0,0.001]
[1760014741235,0.65205266,123640.0,123630.0,0.001]
[1760014741547,1.06326884,123640.0,123630.0,0.001]
[1760014742560,1.1226558,123640.0,123630.0,0.001]
[1760014742991,0.65205266,123640.0,123630.0,0.001]
[1760014743195,0.2289306,123640.0,123630.0,0.02612]
[1760014745767,0.2289306,123640.0,123630.0,0.23156]
[1760014746073,0.2289306,123640.0,123630.0,0.001]
[1760014746277,0.2289306,123640.0,123630.0,0.23156]
[1760014746890,0.2289306,123640.0,123630.0,0.001]
[1760014747023,0.54313007,123640.0,123630.0,0.31568]
[1760014747907,0.294414,123640.0,123630.0,0.31568]
[1760014748120,0.54313007,123640.0,123630.0,0.31568]
[1760014748552,0.294414,123640.0,123630.0,0.001]
[1760014748764,0.294414,123640.0,123630.0,0.23156]
[1760014749070,0.54313007,123640.0,123630.0,0.23156]
[1760014751522,0.294414,123640.0,123630.0,0.23156]
[1760014751733,0.294414,123640.0,123630.0,0.22866]
[1760014751734,0.54313007,123640.0,123630.0,0.22866]
[1760014752134,0.16177303,123630.0,123620.0,0.08412]
[1760014752349,0.20879303,123630.0,123620.0,0.31464]
[1760014752557,0.22844303,123630.0,123620.0,0.31464]
[1760014753078,0.16178611,123620.0,123610.0,0.00134142]
[1760014753325,0.16178611,123620.0,123610.0,0.08546142]
[1760014753326,0.17723611,123620.0,123610.0,0.08546142]
[1760014753540,0.22845611,123620.0,123610.0,0.31598142]
[1760014755512,0.22845611,123620.0,123610.0,0.31698142]
[1760014758711,0.23697556,123620.0,123610.0,0.31698142]
[1760014763762,0.30326703,123620.0,123610.0,0.31698142]
[1760014764853,0.80069917,123620.0,123610.0,0.00234142]
[1760014765064,0.5519831,123620.0,123610.0,0.23286142]
[1760014765315,0.5519831,123620.0,123610.0,0.00234142]
[1760014765491,0.5519831,123620.0,123610.0,0.23286142]
[1760014765695,0.5519831,123620.0,123610.0,0.06850142]
[1760014765898,0.30326703,123620.0,123610.0,0.06850142]
[1760014766047,0.5519831,123620.0,123610.0,0.06850142]
[1760014767611,0.5519831,123620.0,123610.0,0.20362142]
[1760014769503,0.5519831,123620.0,123610.0,0.23186142]
[1760014772216,0.22845611,123620.0,123610.0,0.23186142]
[1760014772440,0.22747611,123620.0,123610.0,0.01619142]
[1760014772661,0.22747611,123620.0,123610.0,0.00134142]
[1760014772847,0.22747611,123620.0,123610.0,0.23186142]
[1760014775128,0.22747611,123620.0,123610.0,0.00134142]
[1760014775333,0.22747611,123620.0,123610.0,0.23186142]
[1760014780553,0.24503435,123620.0,123610.0,0.23186142]
[1760014781644,0.22747611,123620.0,123610.0,0.23186142]
[1760014786533,0.22747611,123620.0,123610.0,0.00134142]
[1760014786764,0.22747611,123620.0,123610.0,0.31594142]
[1760014786976,0.22747611,123620.0,123610.0,0.19086142]
[1760014787290,0.22747611,123620.0,123610.0,0.08546142]
[1760014787521,0.22747611,123620.0,123610.0,0.31594142]
[1760014787847,0.29367004,123620.0,123610.0,0.31594142]
[1760014788575,0.22747611,123620.0,123610.0,0.31594142]
[1760014791348,0.22747611,123620.0,123610.0,0.00134142]
[1760014791560,0.22747611,123620.0,123610.0,0.31594142]
[1760014791962,0.47619218,123620.0,123610.0,0.31594142]
[1760014793175,0.47619218,123620.0,123610.0,0.00134142]
[1760014793390,0.47619218,123620.0,123610.0,0.31594142]
[1760014793767,0.53733403,123620.0,123610.0,0.31594142]
[1760014795022,0.28861796,123620.0,123610.0,0.31594142]
[1760014795301,0.28861796,123620.0,123610.0,0.00134142]
[1760014795507,0.7860501,123620.0,123610.0,0.08262142]
[1760014795916,0.53733403,123620.0,123610.0,0.08262142]
[1760014799451,0.53733403,123620.0,123610.0,0.00134142]
[1760014799710,0.53733403,123620.0,123610.0,0.21510142]
[1760014799894,0.53733403,123620.0,123610.0,0.23178142]
[1760014800320,0.53733403,123620.0,123610.0,0.00134142]
[1760014800701,0.53733403,123620.0,123610.0,0.06790142]
[1760014800902,0.7860501,123620.0,123610.0,0.00134142]
[1760014801047,0.7860501,123620.0,123610.0,0.19930142]
[1760014801256,0.53733403,123620.0,123610.0,0.19930142]
[1760014801494,0.47619218,123620.0,123610.0,0.19930142]
[1760014801898,0.22747611,123620.0,123610.0,0.19930142]
[1760014802096,0.22747611,123620.0,123610.0,0.00134142]
[1760014802436,0.22747611,123620.0,123610.0,0.19398142]
[1760014802911,0.19688611,123620.0,123610.0,0.26676142]
[1760014803159,0.16178611,123620.0,123610.0,0.29711142]
[1760014803414,0.16178611,123620.0,123610.0,0.31159268]
[1760014803622,0.17034859,123640.0,123620.0,0.19192665]
[1760014803844,0.17034859,123640.0,123630.0,0.3935662]
[1760014804061,0.17034859,123640.0,123630.0,0.37856]
[1760014804481,0.1622606,123640.0,123630.0,0.65360699]
[1760014804914,0.1622606,123640.0,123630.0,0.42316699]
[1760014805158,0.00050066,123640.0,123630.0,0.65360699]
[1760014805801,0.00050066,123640.0,123630.0,1.33012699]
[1760014806058,0.00050066,123640.0,123630.0,0.85383396]
[1760014806296,0.1622606,123640.0,123630.0,1.33012699]
[1760014806501,0.1622606,123640.0,123630.0,0.74767396]
[1760014806708,0.1622606,123640.0,123630.0,1.16835396]
[1760014806917,0.1622606,123640.0,123630.0,1.33012699]
[1760014807164,0.00050066,123640.0,123630.0,1.09972699]
[1760014807395,0.1622606,123640.0,123630.0,1.33012699]
[1760014807621,0.00050066,123640.0,123630.0,1.33112699]
[1760014808015,0.1622606,123640.0,123630.0,1.33112699]
[1760014808619,0.1622606,123640.0,123630.0,0.68004699]
[1760014808824,0.1622606,123640.0,123630.0,1.33108699]
[1760014809645,0.00050066,123640.0,123630.0,1.33108699]
[1760014809854,0.00050066,123640.0,123630.0,1.33208699]
[1760014810054,0.1622606,123640.0,123630.0,1.33208699]
[1760014810921,0.00050066,123640.0,123630.0,1.33208699]
[1760014811977,0.00050066,123640.0,123630.0,1.10168699]
[1760014812411,0.00050066,123640.0,123630.0,1.33204699]
[1760014813083,0.00050066,123640.0,123630.0,2.83371299]
[1760014813493,0.00050066,123640.0,123630.0,2.71451099]
[1760014813694,0.00050066,123640.0,123630.0,1.66748699]
[1760014814116,0.00050066,123640.0,123630.0,3.11945299]
[1760014814327,0.00050066,123640.0,123630.0,3.00680499]
[1760014814533,0.00050066,123640.0,123630.0,2.81560499]
[1760014814731,0.00050066,123640.0,123630.0,1.66748699]
[1760014814931,0.00050066,123640.0,123630.0,3.06355943]
[1760014815334,0.00050066,123640.0,123630.0,3.11716343]
[1760014815545,0.00050066,123640.0,123630.0,3.12598643]
[1760014815727,0.00050066,123640.0,123630.0,3.25555743]
[1760014815942,0.00050066,123640.0,123630.0,3.10670143]
[1760014816390,0.00050066,123640.0,123630.0,3.16798343]
[1760014816522,0.00050066,123640.0,123630.0,3.42009643]
[1760014816742,0.00050066,123640.0,123630.0,4.08854043]
[1760014816958,0.00050066,123640.0,123630.0,1.69472143]
[1760014817190,0.00050066,123640.0,123630.0,3.95959743]
[1760014817389,1e-08,123640.0,123630.0,4.38366737]
[1760014817849,1e-08,123640.0,123630.0,4.59189841]
[1760014819193,1e-08,123640.0,123630.0,3.86986653]
[1760014819395,1e-08,123640.0,123630.0,1.32800953]
[1760014819598,1e-08,123640.0,123630.0,0.67716953]
[1760014819812,0.16175995,123640.0,123630.0,0.75768953]
[1760014820011,1e-08,123640.0,123630.0,0.98796953]
[1760014820227,0.16175995,123640.0,123630.0,0.1753965]
[1760014820435,0.22546995,123640.0,123630.0,0.50760206]
[1760014820644,0.22546995,123640.0,123630.0,0.004]
[1760014820924,0.5570046,123640.0,123630.0,0.004]
[1760014821307,0.98012666,123640.0,123630.0,0.004]
[1760014821523,0.16178611,123620.0,123610.0,0.08542142]
[1760014821726,0.96371988,123620.0,123610.0,0.00134142]
[1760014821942,1.01250988,123620.0,123610.0,1e-08]
[1760014822153,0.16183848,123580.0,123570.0,0.48667503]
[1760014822370,0.16183848,123580.0,123570.0,0.06619503]
[1760014822371,0.22554848,123580.0,123570.0,0.06619503]
[1760014822566,0.19700848,123580.0,123570.0,0.41341503]
[1760014822786,0.19700848,123580.0,123570.0,0.18289503]
[1760014822997,0.19700848,123580.0,123570.0,0.34722]
[1760014823451,0.19700848,123580.0,123570.0,0.34772583]
[1760014823672,0.17675675,123590.0,123570.0,0.30940741]
[1760014823880,0.16183848,123580.0,123570.0,0.30940741]
[1760014824116,0.17675675,123590.0,123570.0,0.30844947]
[1760014824117,0.16183675,123590.0,123570.0,0.30844947]
[1760014824313,0.18208848,123580.0,123570.0,0.23051979]
[1760014824555,0.16183848,123580.0,123570.0,0.23051979]
[1760014824762,0.17675675,123590.0,123570.0,0.39237137]
[1760014824974,0.1848229,123600.0,123580.0,0.45361739]
[1760014825175,0.16182539,123590.0,123580.0,0.0452]
[1760014825403,0.19733539,123590.0,123580.0,0.1191]
[1760014825609,0.22723539,123590.0,123580.0,0.08412]
[1760014825832,0.50183848,123580.0,123570.0,0.00150583]
[1760014826038,1.16926911,123580.0,123570.0,0.00150583]
[1760014826239,1.22760307,123580.0,123570.0,0.00050583]
[1760014826648,1.22760307,123580.0,123570.0,1e-08]
[1760014827266,1.45836307,123580.0,123570.0,1e-08]
[1760014827679,1.22760307,123580.0,123570.0,1e-08]
[1760014827890,1.45836307,123580.0,123570.0,0.00250475]
[1760014828133,1.55840306,123580.0,123570.0,1e-08]
[1760014828363,1.35360305,123580.0,123570.0,1e-08]
[1760014828582,1.37283786,123580.0,123570.0,1e-08]
[1760014828799,1.60367786,123580.0,123570.0,1e-08]
[1760014829262,1.37183786,123580.0,123570.0,1e-08]
[1760014829510,1.68979786,123580.0,123570.0,1e-08]
[1760014829921,1.5185921,123580.0,123570.0,1e-08]
[1760014830102,1.5260923,123580.0,123570.0,1e-08]
[1760014830302,1.7495921,123580.0,123570.0,1e-08]
[1760014830743,1.4344721,123580.0,123570.0,1e-08]
[1760014831003,0.92042034,123580.0,123570.0,1e-08]
[1760014831267,1.7465921,123580.0,123570.0,1e-08]
[1760014831701,1.5185921,123580.0,123570.0,1e-08]
[1760014832156,1.7496321,123580.0,123570.0,1e-08]
[1760014833061,1.33447211,123580.0,123570.0,1e-08]
[1760014833316,1.30947212,123580.0,123570.0,1e-08]
[1760014833533,1.54047212,123580.0,123570.0,1e-08]
[1760014833781,1.29446215,123580.0,123570.0,1e-08]
[1760014834025,0.3215545,123580.0,123570.0,1e-08]
[1760014834262,0.6615545,123580.0,123570.0,1e-08]
[1760014835383,0.6585545,123580.0,123570.0,1e-08]
[1760014835850,0.6595545,123580.0,123570.0,1e-08]
[1760014836509,0.6605545,123580.0,123570.0,1e-08]
[1760014836731,0.73191734,123580.0,123570.0,1e-08]
[1760014836965,0.22879848,123580.0,123570.0,1e-08]
[1760014837518,0.22879848,123580.0,123570.0,0.22916001]
[1760014837718,0.22879848,123580.0,123570.0,1e-08]
[1760014841477,0.80097231,123580.0,123570.0,1e-08]
[1760014841687,1.22096911,123580.0,123570.0,1e-08]
[1760014841894,0.74687958,123580.0,123570.0,1e-08]
[1760014842112,1.23593135,123580.0,123570.0,1e-08]
[1760014842324,1.46697135,123580.0,123570.0,1e-08]
[1760014842542,0.97791958,123580.0,123570.0,1e-08]
[1760014843485,1.47445763,123580.0,123570.0,1e-08]
[1760014844764,0.75436586,123580.0,123570.0,1e-08]
[1760014845180,0.98540586,123580.0,123570.0,1e-08]
[1760014845380,1.47445763,123580.0,123570.0,1e-08]
[1760014847351,1.49176782,123580.0,123570.0,1e-08]
[1760014847585,0.98540586,123580.0,123570.0,1e-08]
[1760014847817,1.47445763,123580.0,123570.0,1e-08]
[1760014848730,1.49179658,123580.0,123570.0,1e-08]
[1760014849347,1.51347027,123580.0,123570.0,1e-08]
[1760014850223,1.52069483,123580.0,123570.0,1e-08]
[1760014851339,1.56404221,123580.0,123570.0,1e-08]
[1760014852204,1.53514396,123580.0,123570.0,1e-08]
[1760014852417,0.16187778,123550.0,123540.0,0.14490098]
[1760014852620,0.2173263,123550.0,123540.0,0.14505267]
[1760014853020,0.2173263,123550.0,123540.0,0.14655626]
[1760014853232,0.23466525,123550.0,123540.0,0.16634626]
[1760014854430,0.20166525,123550.0,123540.0,0.19358626]
[1760014854647,0.1843263,123550.0,123540.0,0.17739718]
[1760014854835,0.1843263,123550.0,123540.0,0.57008806]
[1760014855250,0.1843263,123550.0,123540.0,0.57108806]
[1760014855443,0.1843263,123550.0,123540.0,0.41019718]
[1760014855649,0.1843263,123550.0,123540.0,0.57208806]
[1760014855858,0.1843263,123550.0,123540.0,0.41019718]
[1760014856099,0.1843263,123550.0,123540.0,0.17939718]
[1760014856244,0.2017803,123550.0,123540.0,0.38103718]
[1760014856719,0.2017803,123550.0,123540.0,0.15027718]
[1760014856911,0.2017803,123550.0,123540.0,0.42632626]
[1760014857089,0.2017803,123550.0,123540.0,0.41013718]
[1760014857615,0.2017803,123550.0,123540.0,0.57202806]
[1760014857903,0.2017803,123550.0,123540.0,0.41013718]
[1760014858326,0.20178002,123550.0,123540.0,0.41013718]
[1760014859756,0.22077002,123550.0,123540.0,0.38103718]
[1760014859960,0.22077002,123550.0,123540.0,0.15027718]
[1760014860137,0.30770266,123550.0,123540.0,0.13048718]
[1760014860539,0.26302002,123550.0,123540.0,0.14667626]
[1760014860748,0.23491002,123550.0,123540.0,0.39646626]
[1760014860945,0.23491002,123550.0,123540.0,0.38027718]
[1760014862419,0.23491002,123550.0,123540.0,0.34856718]
[1760014862627,0.26302002,123550.0,123540.0,0.34856718]
[1760014862830,0.30911666,123550.0,123540.0,0.34856718]
[1760014863351,0.30911666,123550.0,123540.0,0.31841528]
[1760014863583,0.30911666,123550.0,123540.0,0.00365528]
[1760014863790,0.28100666,123550.0,123540.0,0.33756528]
[1760014864002,0.28100666,123550.0,123540.0,0.10696528]
[1760014864210,0.23491002,123550.0,123540.0,0.35004528]
[1760014864968,0.23491002,123550.0,123540.0,0.11948528]
[1760014865150,0.23500228,123550.0,123540.0,0.36499299]
[1760014865353,0.23500228,123550.0,123540.0,0.34904528]
[1760014866206,0.21601228,123550.0,123540.0,0.34904528]
[1760014866631,0.20187228,123550.0,123540.0,0.37814528]
[1760014867066,0.20187228,123550.0,123540.0,0.37714528]
[1760014868334,0.0399945,123550.0,123540.0,0.42175012]
[1760014868480,0.0399945,123550.0,123540.0,0.33759012]
[1760014868686,0.20187228,123550.0,123540.0,0.17569924]
[1760014868881,0.22086228,123550.0,123540.0,0.14659924]
[1760014869088,0.18442123,123550.0,123540.0,0.14659924]
[1760014869293,0.22087958,123550.0,123540.0,0.56747924]
[1760014869492,0.21755123,123550.0,123540.0,0.14659924]
[1760014869691,0.21755123,123550.0,123540.0,0.23175924]
[1760014869933,0.20258899,123550.0,123540.0,0.23175924]
[1760014870291,0.18359899,123550.0,123540.0,0.46231924]
[1760014870528,0.18359899,123550.0,123540.0,0.62321012]
[1760014870706,0.18359899,123550.0,123540.0,0.39265012]
[1760014870906,0.16945899,123550.0,123540.0,0.42275012]
[1760014871310,0.16945899,123550.0,123540.0,0.65331012]
[1760014871859,0.18692962,123550.0,123540.0,0.65431012]
[1760014872044,0.25741709,123550.0,123540.0,0.46331924]
[1760014872263,0.28552709,123550.0,123540.0,0.43164924]
[1760014872713,0.27794588,123550.0,123540.0,0.11692924]
[1760014872923,0.28552873,123550.0,123540.0,0.31837528]
[1760014873125,0.25741873,123550.0,123540.0,0.35004528]
[1760014873332,0.22006126,123550.0,123540.0,0.34804528]
[1760014873537,0.21247841,123550.0,123540.0,0.34804528]
[1760014873967,0.21247841,123550.0,123540.0,0.11748528]
[1760014874177,0.21247841,123550.0,123540.0,0.36419436]
[1760014874388,0.25631683,123550.0,123540.0,0.34800528]
[1760014874598,0.26389977,123550.0,123540.0,0.34800528]
[1760014874851,0.29200977,123550.0,123540.0,0.00165528]
[1760014875066,0.24058841,123550.0,123540.0,0.31633528]
[1760014875303,0.24058841,123550.0,123540.0,0.08581528]
[1760014875536,0.24058841,123550.0,123540.0,0.31633528]
[1760014875771,0.24058841,123550.0,123540.0,0.08581528]
[1760014875998,0.17934841,123550.0,123540.0,0.37767528]
[1760014876245,0.16187778,123550.0,123540.0,0.37767528]
[1760014876475,0.16187778,123550.0,123540.0,0.62272822]
[1760014876703,0.16187778,123550.0,123540.0,0.46083734]
[1760014876952,0.16187778,123550.0,123540.0,0.62272822]
[1760014877167,0.16187778,123550.0,123540.0,0.46083734]
[1760014878262,0.16187778,123550.0,123540.0,0.39216822]
[1760014878466,0.16187778,123550.0,123540.0,0.62272822]
[1760014878758,0.16187778,123550.0,123540.0,0.46083734]
[1760014879008,0.16187778,123550.0,123540.0,0.14611734]
[1760014879243,0.16187778,123550.0,123540.0,0.46083734]
[1760014879461,0.16187778,123550.0,123540.0,0.23027734]
[1760014879686,0.16187778,123550.0,123540.0,0.46083734]
[1760014880663,0.16187778,123550.0,123540.0,0.43173734]
[1760014880865,0.16187778,123550.0,123540.0,0.46188924]
[1760014881108,0.18086778,123550.0,123540.0,0.14716924]
[1760014881384,0.19847713,123550.0,123540.0,0.49098924]
[1760014881619,0.19847713,123550.0,123540.0,0.46188924]
[1760014881855,0.21746713,123550.0,123540.0,0.46188924]
[1760014882118,0.18086778,123550.0,123540.0,0.46188924]
[1760014882400,0.18086778,123550.0,123540.0,0.14716924]
[1760014882619,0.19500778,123550.0,123540.0,0.46188924]
[1760014886496,0.19500778,123550.0,123540.0,0.23132924]
[1760014886709,0.16187778,123550.0,123540.0,0.49104924]
[1760014887332,0.18182778,123550.0,123540.0,0.46188924]
[1760014887495,0.16187778,123550.0,123540.0,0.49104924]
[1760014887703,0.18182778,123550.0,123540.0,0.14716924]
[1760014887918,0.19559778,123550.0,123540.0,0.46188924]
[1760014888120,0.26562913,123550.0,123540.0,0.11492924]
[1760014888328,0.26562913,123550.0,123540.0,0.42964924]
[1760014888512,0.22565778,123550.0,123540.0,0.42964924]
[1760014888712,0.22565778,123550.0,123540.0,0.11492924]
[1760014888922,0.22565778,123550.0,123540.0,0.42964924]
[1760014890001,0.22565778,123550.0,123540.0,0.11492924]
[1760014890239,0.22565778,123550.0,123540.0,0.31637528]
[1760014890451,0.29072498,123550.0,123540.0,0.31637528]
[1760014890652,0.22565778,123550.0,123540.0,0.31637528]
[1760014890860,0.22565778,123550.0,123540.0,0.10485528]
[1760014891069,0.19559778,123550.0,123540.0,0.34749528]
[1760014891283,0.16187778,123550.0,123540.0,0.34749528]
[1760014891498,0.16187778,123550.0,123540.0,0.37665528]
[1760014891713,0.16187778,123550.0,123540.0,0.22921734]
[1760014891899,0.16187778,123550.0,123540.0,0.45977734]
[1760014893003,0.16187778,123550.0,123540.0,0.22921734]
[1760014893238,0.16187778,123550.0,123540.0,0.45977734]
[1760014893453,0.16186571,123560.0,123540.0,0.42126012]
[1760014893660,0.16186571,123560.0,123550.0,0.30105304]
[1760014893907,0.16994531,123570.0,123550.0,0.30669215]
[1760014894121,0.16994531,123570.0,123560.0,0.2446]
[1760014894334,0.16994531,123570.0,123560.0,0.2928]
[1760014894746,0.18989531,123570.0,123560.0,0.26364]
[1760014895387,0.20366531,123570.0,123560.0,0.26364]
[1760014896010,0.16994531,123570.0,123560.0,0.2928]
[1760014896433,0.16185158,123570.0,123560.0,0.30722674]
[1760014896649,0.16183848,123580.0,123560.0,0.33737864]
[1760014896852,0.16183848,123580.0,123570.0,0.30287441]
[1760014897054,0.16183848,123580.0,123570.0,0.30849158]
[1760014897257,0.16183848,123580.0,123570.0,0.14664]
[1760014897459,0.16183848,123580.0,123570.0,0.16282515]
[1760014897666,0.22561848,123580.0,123570.0,0.03046515]
[1760014897898,0.16185158,123570.0,123560.0,0.11327396]
[1760014898107,0.22563158,123570.0,123560.0,0.42795396]
[1760014898323,0.22563158,123570.0,123560.0,0.39780206]
[1760014898762,0.22563158,123570.0,123560.0,0.31364206]
[1760014898974,0.16187778,123550.0,123540.0,0.74826359]
[1760014899188,0.19559778,123550.0,123540.0,0.19855375]
[1760014899404,0.19559778,123550.0,123540.0,0.42907375]
[1760014899612,0.22565778,123550.0,123540.0,0.35602565]
[1760014899826,0.22565778,123550.0,123540.0,0.08431169]
[1760014899827,0.26083693,123550.0,123540.0,0.08431169]
[1760014900003,0.26083693,123550.0,123540.0,0.33252436]
[1760014900206,0.26083693,123550.0,123540.0,0.00165528]
[1760014900454,0.26083693,123550.0,123540.0,0.33226485]
[1760014900665,0.26083693,123550.0,123540.0,0.00165528]
[1760014900875,0.26083693,123550.0,123540.0,0.33224404]
[1760014901089,0.26083693,123550.0,123540.0,0.23217528]
[1760014901296,0.26083693,123550.0,123540.0,0.08581528]
[1760014901512,0.26083693,123550.0,123540.0,0.33352436]
[1760014901645,0.22565778,123550.0,123540.0,0.31833528]
[1760014905393,0.19559778,123550.0,123540.0,0.33721528]
[1760014905734,0.22239778,123550.0,123540.0,0.31833528]
[1760014905944,0.22239778,123550.0,123540.0,0.00365528]
[1760014906154,0.22239778,123550.0,123540.0,0.25036436]
[1760014906361,0.23421079,123550.0,123540.0,0.31833528]
[1760014907634,0.22239778,123550.0,123540.0,0.31833528]
[1760014907992,0.22239778,123550.0,123540.0,0.00365528]
[1760014908211,0.22239778,123550.0,123540.0,0.31833528]
[1760014914988,0.22239778,123550.0,123540.0,0.00365528]
[1760014915193,0.22239778,123550.0,123540.0,0.33452436]
[1760014915334,0.22239778,123550.0,123540.0,0.31833528]
[1760014915744,0.22239778,123550.0,123540.0,0.00365528]
[1760014916037,0.22239778,123550.0,123540.0,0.33452436]
[1760014916241,0.22239778,123550.0,123540.0,0.23417528]
[1760014916445,0.22239778,123550.0,123540.0,0.31833528]
[1760014916716,0.22239778,123550.0,123540.0,0.00365528]
[1760014917053,0.22239778,123550.0,123540.0,0.01984436]
[1760014917251,0.22239778,123550.0,123540.0,0.33452436]
[1760014917453,0.22239778,123550.0,123540.0,0.31833528]
[1760014917836,0.23086291,123550.0,123540.0,0.31833528]
[1760014918043,0.22239778,123550.0,123540.0,0.31833528]
[1760014920295,0.22239778,123550.0,123540.0,0.33725528]
[1760014920550,0.19559778,123550.0,123540.0,0.33725528]
[1760014921377,0.16189088,123540.0,123530.0,0.12666005]
[1760014921559,0.16189088,123540.0,123530.0,0.53017307]
[1760014921806,0.16189088,123540.0,123530.0,0.51398268]
[1760014922416,0.16189088,123540.0,123530.0,0.13224453]
[1760014922595,0.19393088,123540.0,123530.0,0.46411492]
[1760014922808,0.19393088,123540.0,123530.0,0.21740453]
[1760014922988,0.19393088,123540.0,123530.0,0.44892453]
[1760014923640,0.19393088,123540.0,123530.0,0.21840453]
[1760014923845,0.25836875,123540.0,123530.0,0.16933263]
[1760014924051,0.22141088,123540.0,123530.0,0.39985263]
[1760014924278,0.19393088,123540.0,123530.0,0.41877263]
[1760014925710,0.22141088,123540.0,123530.0,0.39985263]
[1760014925957,0.22141088,123540.0,123530.0,0.08517263]